Cogmind - Beta 15 @@@ ROGUE MODE // 2025.08.26 @ 23:22:41 Player: NQH Result: Destroyed by G-34 Mercenary with Small Laser Performance ------------- Evolutions (1) 500 Regions Visited (2) 400 Robots Destroyed (23) 115 Value Destroyed (350) 350 Prototype IDs (0) 0 Alien Tech Used (0) 0 Bonus (0) 0 TOTAL SCORE: 1365 Bonus ------- None Cogmind --------- Core Integrity 0/400 Matter 219/300 Energy 4/100 System Corruption 0% Temperature Cool (6) Movement Core (200) Ox3 Location -9/Materials Parts ------- > --- POWER (1) -------- (None) > --- PROPULSION (2) --- (None) > --- UTILITY (4) ------ Small Storage Unit Improved Targeting Computer Shield Generator Shield Generator > --- WEAPON (2) ------- Light Assault Rifle > --- INVENTORY (8) ---- Heat Sink Heat Sink Improved Heat Sink Small Matter Pod (50) Small Matter Pod (50) Datajack Datajack Peak State ------------ > --- POWER ------------ Ion Engine > --- PROPULSION ------- Light Treads Aluminum Leg > --- UTILITY ---------- Small Storage Unit Improved Terrain Scanner Improved Targeting Computer > --- WEAPON ----------- Light Assault Rifle Heavy Assault Rifle > --- INVENTORY -------- Heat Sink Heat Sink Improved Heat Sink Small Matter Pod Small Matter Pod Grenade Launcher Datajack Datajack [Rating: 13] Favorites ----------- Power Light Ion Engine Engine Light Ion Engine Propulsion Light Treads Treads Light Treads Leg Aluminum Leg Hover Unit Hover Unit Flight Unit Flight Unit Utility Small Storage Unit Device Improved Terrain Scanner Storage Small Storage Unit Processor Improved Targeting Computer Weapon Light Assault Rifle Energy Gun Medium Laser Ballistic Gun Light Assault Rifle Launcher Grenade Launcher Special Melee Weapon Datajack Build | -11 -10 -9 ------- Run | Yrd Mat Mat Slots Evolved 2 | . . 2 Power . | . . . Propulsion . | . . . Utility 2 | . . 2 Weapon . | . . . Parts Attached 22 | 7 3 12 Power 3 | 1 1 1 Engine 3 | 1 1 1 Core . | . . . Reactor . | . . . Propulsion 6 | 2 . 4 Treads 2 | 2 . . Leg 1 | . . 1 Wheel . | . . . Hover 2 | . . 2 Flight 1 | . . 1 Utility 6 | 2 . 4 Device 4 | 1 . 3 Storage 1 | 1 . . Processor 1 | . . 1 Hackware . | . . . Protection . | . . . Artifact . | . . . Weapon 7 | 2 2 3 Energy Gun 1 | 1 . . Energy Cannon . | . . . Ballistic Gun 3 | 1 . 2 Ballistic Cannon . | . . . Launcher 1 | . . 1 Special Weapon . | . . . Impact Weapon . | . . . Slashing Weapon . | . . . Piercing Weapon . | . . . Special Melee Weapon 2 | . 2 . Unidentified Prototypes . | . . . Parts Lost 9 | . . 9 Power 1 | . . 1 Propulsion 4 | . . 4 Utility 1 | . . 1 Weapon 3 | . . 3 Highest Loss Streak 6 | . . 6 To Critical Strikes 1 | . . 1 Average Backups 3 | . 2 7 Power . | . . . Propulsion . | . . . Utility 2 | . . 4 Weapon . | . . . Tool/Special . | . . . Unused Backups 4 | . . 4 Power . | . . . Propulsion . | . . . Utility 4 | . . 4 Weapon . | . . . Tool/Special . | . . . Average Slot Usage (%) 79 | . 93 64 Engine 11 | . 14 9 Treads 16 | . 28 4 Leg 2 | . . 4 Flight 1 | . . 2 Device 10 | . 14 7 Storage 12 | . 14 11 Processor 3 | . . 7 Energy Gun 1 | . 3 . Ballistic Gun 15 | . 14 16 Special Melee Weapon 2 | . 4 . Peak Build Rating 13 | 9 9 13 Average Rating 8 | 5 8 9 On Entrance 5 | . 9 8 Naked Turns . | . . . Heaviest Build 16 | 12 12 16 Greatest Support 40 | 40 40 40 Greatest Overweight (x) 3 | . . 3 Average Overweight (x) . | . . . Largest Inventory Capacity 8 | 8 8 8 Average Capacity 7 | 7 8 8 Most Carried 8 | . 7 8 Average Carried 4 | . 2 7 Final Capacity 8 | 8 8 8 Final Carried 7 | . 6 7 Class Distribution -------------------- 84% | Mutant 15% | Scavenger-Mutant Dominant Class ---------------- Mutant | -10/Materials Mutant | -9/Materials Resources | -11 -10 -9 ----------- Run | Yrd Mat Mat Matter Collected 613 | 287 59 267 Remotely . | . . . Salvage Created 648 | 243 181 224 Parts 50 | 24 9 17 Haulers Intercepted 1 | . . 1 Recyclers Shooed 1 | 1 . . Parts Field Recycled . | . . . Retrieved Matter . | . . . Parts Self-Destructed . | . . . Prevented . | . . . Kills | -11 -10 -9 ------- Run | Yrd Mat Mat Combat Hostiles Destroyed 13 | . 4 9 Guns 13 | . 4 9 Classes Destroyed 7 | 3 1 3 Worker 2 | 2 . . Tunneler 6 | 6 . . Hauler 1 | . . 1 Recycler 1 | 1 . . Swarmer 7 | . . 7 Grunt 5 | . 4 1 Sentry 1 | . . 1 Best Kill Streak 4 | 4 1 4 Combat Bots Only 4 | . 1 4 Max Kills in Single Turn 2 | 2 1 1 Gunslinging . | . . . Exploded . | . . . Melee . | . . . Uniques/NPCs Destroyed . | . . . Combat | -11 -10 -9 -------- Run | Yrd Mat Mat Hostile Shots Fired 150 | . 31 119 Missed 40 | . 9 31 Hits 110 | . 22 88 Melee 8 | . . 8 Projectile 102 | . 22 80 Critical Strikes 3 | . . 3 Damage Taken 1376 | . 259 1117 Core 460 | . 53 407 Absorbed by Shields 18 | . . 18 Core Remaining (%) 89 | 100 78 . Volleys Fired 109 | 17 39 53 Largest 2 | 2 1 2 Hottest 70 | 70 20 53 Shots Fired 143 | 33 39 71 Gun 140 | 33 39 68 Cannon . | . . . Launcher 3 | . . 3 Special . | . . . Kinetic 124 | 17 39 68 Thermal 16 | 16 . . Explosive 3 | . . 3 Electromagnetic . | . . . Robot Hit Streak 12 | 4 9 12 Robot Miss Streak 5 | 1 5 2 Penetration Max . | . . . Secondary Targets . | . . . Shots Hit Robots 105 | 21 34 50 Core Hits 41 | 12 12 17 Critical Kills . | . . . Critical Parts Destroyed 1 | . . 1 Critical Strikes 2 | 1 . 1 Burn 1 | 1 . . Destroy 1 | . . 1 Melee Attacks 13 | . 13 . Impact . | . . . Slashing . | . . . Piercing . | . . . Sneak Attacks 9 | . 9 . Combat Hostiles . | . . . Follow-up Attacks . | . . . Damage Inflicted 1120 | 239 194 687 Guns 949 | 239 194 516 Cannons . | . . . Explosions 171 | . . 171 Melee . | . . . Ramming . | . . . Kinetic 825 | 115 194 516 Thermal 124 | 124 . . Explosive 171 | . . 171 Electromagnetic . | . . . Impact . | . . . Slashing . | . . . Piercing . | . . . Highest Corruption . | . . . Average Corruption . | . . . Corruption Purged . | . . . Corruption Blocked . | . . . Overload Shots . | . . . Overflow Damage 14 | . . 14 Projectiles . | . . . Explosions 14 | . . 14 Melee . | . . . Knockbacks . | . . . Impact . | . . . Kinetic . | . . . Secondary . | . . . Self-Inflicted Damage 60 | . . 60 Shots 2 | . . 2 Rammed 1 | . . 1 Targets Rammed 1 | . . 1 Kicked . | . . . Crushed . | . . . Highest Temperature 100 | 100 9 24 Average Temperature 32 | 37 7 10 Received Heat Transfer 336 | . 150 186 Siege Activations . | . . . Martial Activations . | . . . Shielding Activations . | . . . Robots Disrupted . | . . . Combat Hostiles . | . . . Robots Corrupted . | . . . Combat Hostiles . | . . . Parts Fried . | . . . Impact Corruptions . | . . . Robots Melted . | . . . Combat Hostiles . | . . . Parts Melted 2 | 2 . . Heat Transferred 444 | 444 . . Parts Sabotaged . | . . . Parts Stolen . | . . . Parts Stripped . | . . . Power Chain Reactions . | . . . Alert | -11 -10 -9 ------- Run | Yrd Mat Mat Maximum Alert Level . | . . . Low Security (%) 100 | 100 100 100 Level 1 . | . . . Level 2 . | . . . Level 3 . | . . . Level 4 . | . . . Level 5 . | . . . High Security . | . . . Max Security . | . . . Peak Influence 95 | 10 45 95 Initial 4 | . . 4 Average 16 | 1 8 31 Influence Increases 436 | 45 125 266 Destroy 0b10 Robot/C 260 | . 80 180 Destroy 0b10 Robot/NC 50 | 45 . 5 Destroy Leader 72 | . 30 42 Destroy Structure 24 | . . 24 Lose Combat Pursuer 30 | . 15 15 Influence Decreases 436 | 45 113 278 Entered New Map 8 | . . 8 Time Decay 348 | 45 113 190 Lost Part 80 | . . 80 Squads Dispatched 4 | . 2 2 Investigation 2 | . 1 1 Extermination . | . . . Reinforcement 2 | . 1 1 Assault . | . . . Garrison . | . . . Intercept . | . . . Searches Triggered . | . . . Construction Impeded . | . . . Haulers Reinforced . | . . . Active Scanning Responses . | . . . Cargo Convoy Interrupts . | . . . Stealth | -11 -10 -9 --------- Run | Yrd Mat Mat Distress Signals . | . . . Communications Jammed . | . . . Distress Signals . | . . . Times Spotted 23 | . 8 15 Peak Tracking Total 5 | . 3 5 Tactical Retreats 2 | . 1 1 Traps | -11 -10 -9 ------- Run | Yrd Mat Mat Traps Triggered 2 | . 1 1 Indirectly . | . . . Trap Hack Attempts . | . . . Triggered . | . . . Disarmed . | . . . Reprogrammed . | . . . Reused . | . . . Traps Extracted . | . . . Installed . | . . . Triggered . | . . . Machines | -11 -10 -9 ---------- Run | Yrd Mat Mat Machines Disabled . | . . . Max in Single Turn . | . . . Machines Repaired . | . . . Machines Dismantled . | . . . Machines Sabotaged . | . . . Overloaded Fab Kills . | . . . Hacking | -11 -10 -9 --------- Run | Yrd Mat Mat Machines Accessed 3 | . 3 . Terminals 2 | . 2 . Fabricators . | . . . Repair Stations . | . . . Recycling Units 1 | . 1 . Scanalyzers . | . . . Garrison Access . | . . . Total Hacks 8 | . 8 . Successful 3 | . 3 . Failed 5 | . 5 . Catastrophic 2 | . 2 . Database Lockouts . | . . . Manual 2 | . 2 . Terminals 3 | . 3 . Fabricators . | . . . Repair Stations . | . . . Recycling Units 5 | . 5 . Scanalyzers . | . . . Garrison Access . | . . . Terminal Hacks 1 | . 1 . Alert Level 1 | . 1 . Fabricator Hacks . | . . . Repair Station Hacks . | . . . Recycling Unit Hacks 2 | . 2 . Report Inventory 1 | . 1 . Retrieve Components 1 | . 1 . Scanalyzer . | . . . Garrison Access Hacks . | . . . Unauthorized Hacks . | . . . Terminals . | . . . Fabricators . | . . . Repair Stations . | . . . Recycling Units . | . . . Scanalyzers . | . . . Garrison Access . | . . . Data Cores Recovered . | . . . Used . | . . . Hacking Detections 2 | . 2 . Full Trace Events . | . . . Feedback Events . | . . . Feedback Blocked . | . . . Robot Schematics Acquired . | . . . Robots Built . | . . . Authchips . | . . . Time . | . . . Total Robot Build Rating . | . . . Part Schematics Acquired . | . . . Parts Built . | . . . Authchips . | . . . Time . | . . . Total Part Build Rating . | . . . Parts Repaired . | . . . Time . | . . . Parts Recycled . | . . . Recycled Matter . | . . . Retrieved Matter . | . . . Retrieved Components 3 | . 3 . Parts Scanalyzed . | . . . Part Schematics Acquired . | . . . Parts Damaged . | . . . Bothacking | -11 -10 -9 ------------ Run | Yrd Mat Mat Used RIF Installer . | . . . Robots Hacked 6 | . 6 . Non-combat 6 | . 6 . Combat . | . . . Robot Hacks Applied 7 | . 7 . parse_system 2 | . 2 . no_distress 5 | . 5 . Relay Couplers Released . | . . . Fabnet Peak Effective % . | . . . Robots Rewired . | . . . Allies Hacked . | . . . Hacks Repelled . | . . . Allies | -11 -10 -9 -------- Run | Yrd Mat Mat Total Allies . | . . . Largest Group . | . . . Highest-Rated Group . | . . . Highest-Rated Ally . | . . . Total Orders . | . . . Ally Attacks . | . . . Total Damage . | . . . Kills . | . . . Allies Corrupted . | . . . Allies Melted . | . . . Intel | -11 -10 -9 ------- Run | Yrd Mat Mat Active Infowar (turns) 972 | 6 603 363 Terrain 972 | 6 603 363 Robot Analysis Total . | . . . Derelict Logs Recovered . | . . . Drone Launches . | . . . Drone Recoveries . | . . . Exploration | -11 -10 -9 ------------- Run | Yrd Mat Mat Turns Passed 1447 | 246 603 598 Spaces Moved 699 | 123 312 264 Core 62 | 6 . 56 Treads 516 | 117 312 87 Legs 98 | . . 98 Wheels . | . . . Hover 5 | . . 5 Flight 18 | . . 18 Fastest Speed 50 | 50 160 60 Average Speed 162 | 154 160 168 Slowest Speed 280 | 160 160 280 Overloaded Moves . | . . . Propulsion Burnouts . | . . . Robots Hopped . | . . . Potential Cave-ins . | . . . Cave-ins Triggered . | . . . Exploration Rate (%) 23 | 6 48 16 Regions Visited 2 Branch Regions . Pre-discovered Areas . | . . . Known Exits Taken . | . . . Unknown Exits Taken 2 | 1 1 . Scrap Searched . | . . . Spaces Dug . | . . . Terrain Destroyed 30 | . . 30 Melee . | . . . Projectile . | . . . AOE 30 | . . 30 Terrain Rammed . | . . . Walls Destroyed . | . . . Machines Disabled . | . . . Actions | -11 -10 -9 --------- Run | Yrd Mat Mat Total 879 | 146 380 353 Wait 13 | . 3 10 Move 697 | 122 311 264 Hop . | . . . Pick Up 8 | . 6 2 Fast Attach 19 | 7 . 12 Attach 3 | . 2 1 Detach 6 | . 3 3 Swap 2 | . 1 1 Drop 8 | . 2 6 Fire 109 | 17 39 53 Melee 13 | . 13 . Ram 1 | . . 1 Kick . | . . . Crush . | . . . Escape Stasis . | . . . Rewire . | . . . Trap . | . . . Miscellaneous . | . . . Route ------- -11/Scrapyard -10/Materials (discovered 2 exits: [*Mat x2]) -9/Materials (discovered 1 exit: [*Sto]) History --------- Turn | Location | Event 2 | -11/Scrapyard | Met Revision 17 38 | -11/Scrapyard | Discovered new exit (range 15) 247 | -11/Scrapyard | Entered Materials 300 | -10/Materials | Build established: Mutant 557 | -10/Materials | Discovered new exit (range 4) 795 | -10/Materials | Discovered new exit (range 10) 850 | -10/Materials | Entered another Materials area 850 | -9/Materials | Evolved 2 slots: Utility x2 862 | -9/Materials | Discovered new exit (range 14) 1368 | -9/Materials | Core integrity fell below 50% 1378 | -9/Materials | Core integrity fell below 20% 1405 | -9/Materials | Lost 6 parts (1p3n2w) 1448 | -9/Materials | Destroyed by G-34 Mercenary with Small Laser Last Messages --------------- 01376_ U-05 Engineer lays Concrete. 01377_ U-05 Engineer builds a Wall. 01380_ K-01 Serf cleans the Terminal. 01382_ U-05 Engineer builds a Wall. 01385_ K-01 Serf cleans the Terminal. 01386_ U-05 Engineer lays Concrete. 01389_ U-05 Engineer builds a Door. 01409_ K-01 Serf collects debris. 01410_ U-05 Engineer builds a Wall. 01421_ Triggered Alarm Trap. 01421_ An alarm sounds. 01421_ ALERT: Alarm triggered, dispatching investigation squad. 01423_ U-05 Engineer lays Concrete. 01428_ Acquired Shield Generator. 01435_ Slammed into G-34 Mercenary. 01435_ Shield Generator broken. 01435_ Destabilizing: Short circuit. 01443_ Acquired Shield Generator. 01447_ Dropped Broken Shield Generator. Map ----- +----------------------------------------------------+ | ????????????????????????????? | | ????????????????????????????? | | ????????????????????????????? | | ????????????????????????????? | | ????????????????????????????? | | ????????????????????????????? | | ????????????????????????????? | | ????????????????????????????? | | ????????????????????????????? | | ????????????????????????????? | | ????????????????????????????? | | ????????????????????????????? | | ????????????????????????????? | | ?????????????????###????????? | | ???????????????? ????????? | | ????????????????# ???????? | | ????????????????# ???????? | | ????????????????# ???????? | | ????????????????+ ???????? | | ????????????????# ???????? | | ????????????????# ######### | | ????????????????# # # | | ????????????????# g # | | ?###########????# # l/ # | | ?# T #????# # /! # | | ?# #????# # !/ @ # | | ?# """"""" #????# #g # | | ?# """"""" #????# /Y [# | | ?# """"""" ##???# # # | | ?# """"""" #???# ######### | | ?# """"""" #######+#####????? | | ?# # #????? | | ######+##### """ """ #????? | | ???# + """"""""" #????? | | ???# #### """"" " #????? | | ??## # ## ##???? | | ??# ### #????? | | ??## # ## #????? | | ??# ###############???? | | ??# ## #???? | | ??## T ## #?#?? | | ??# # ## ## #???? | | #?## ## [## #???? | | ???## ## ## #???? | | ????# + ** ## ##?#? | | ??#?# ## * ## ##??? | | ??#?# ## ## #???? | | ?#?## ## ## ##??? | | ???# ##+####+##+####????? | | #??# #?????? | +----------------------------------------------------+ Best States ------------- Heat Dissipation 28 Energy Generation 10 Energy Capacity 250 Matter Stores 300 Matter Capacity 300 Sight Range 16 Terrain Scan Range 16 Terrain Scan Density 10 Evasion (%) 45 Targeting Accuracy 6 Recoil Reduction 2 Item Schematics ----------------- None Robot Schematics ------------------ None Fabricated ------------ Nothing Repaired ---------- Nothing Alien Tech Used ----------------- None Achievements -------------- None Challenges ------------ None Game ------ Seed ActuatorSurveybotDeflector Manual? 0 Play Time 00:09:07 Cumulative 20.1 hours Start 2025.08.26 @ 22:19:39 End 2025.08.26 @ 23:22:41 Sessions 1 Manual Loads 0 Difficulty Rogue Special Mode None Game No. 69 Rogue 69 Adventurer 0 Explorer 0 Win Type - Total 0 Types 0/0/0/0/0/0/0/0/0/0 Lore% 10 Gallery% 24 Achievement% 23 Wizard Run 0 Options --------- Layout 1 ASCII 0 Keyboard 1 Movement Vi Keybinds 0 Fullscreen 1 Font 16/SmallcapsGlow Map View 55x38 Zoom Use 0% Tactical HUD 1 Map Filters NONE Filters NONE Steam 1 RUN: 1f9676b7-a7da-4ebd-8345-f372372e3488